bitfinex-derivatives/quotes_BNBF0:USTF0_20251225
["timestamp","ask_amount","ask_price","bid_price","bid_amount"]
[1766660904249,1.19545181,837.46,836.38,1.19183808]
[1766660904453,0.88848105,837.45,836.4,1.19183808]
[1766660904652,1.19545181,837.44,836.4,1.19183808]
[1766660905349,0.88848105,837.42,836.42,1.19183808]
[1766660905648,1.19545181,837.41,836.43,1.19183808]
[1766660906452,0.88848105,837.4,836.45,1.19183808]
[1766660906653,1.19545181,837.39,836.45,1.19183808]
[1766660907452,2.08393286,837.39,836.46,1.19183808]
[1766660907656,1.19545181,837.38,836.46,1.19183808]
[1766660908056,0.88848105,837.34,836.41,1.19183808]
[1766660908351,1.19545181,837.33,836.4,1.19183808]
[1766660910151,1.19545181,837.33,836.41,1.19183808]
[1766660910351,1.19545181,837.32,836.41,1.19183808]
[1766660910552,1.19545181,837.31,836.43,1.19183808]
[1766660910757,0.88848105,837.36,836.43,1.19183808]
[1766660910758,1.19545181,837.3,836.43,1.19183808]
[1766660911056,1.19545181,837.29,836.43,1.19183808]
[1766660911257,1.19545181,837.28,836.43,1.19183808]
[1766660911458,0.88848105,837.36,836.44,1.19183808]
[1766660911655,1.19548993,837.35,836.44,1.19183808]
[1766660911858,1.19548993,837.34,836.44,1.19183808]
[1766660912058,1.19548993,837.33,836.44,1.19183808]
[1766660912258,1.19548993,837.32,836.44,1.19183808]
[1766660912457,1.19548993,837.31,836.45,1.19183808]
[1766660912759,1.19548993,837.3,836.45,1.19183808]
[1766660912954,1.19548993,837.29,836.45,1.19183808]
[1766660913155,1.19548993,837.28,836.45,1.19183808]
[1766660913355,1.19548993,837.27,836.46,1.19183808]
[1766660913556,0.88848105,837.36,836.46,1.19183808]
[1766660913761,1.19547811,837.35,836.46,1.19183808]
[1766660913961,1.19547811,837.34,836.46,1.19183808]
[1766660914161,1.19547811,837.33,836.46,1.19183808]
[1766660914361,1.19547811,837.32,836.46,1.19183808]
[1766660914561,1.19547811,837.31,836.46,1.19183808]
[1766660914762,1.19547811,837.3,836.46,1.19183808]
[1766660914960,1.19547811,837.29,836.46,1.19183808]
[1766660915159,1.19547811,837.28,836.46,1.19183808]
[1766660915363,1.19547811,837.27,836.46,1.19183808]
[1766660915564,0.88848105,837.36,836.46,1.19183808]
[1766660915761,1.19547751,837.35,836.46,1.19183808]
[1766660916064,1.19547751,837.34,836.46,1.19183808]
[1766660916263,1.19547751,837.33,836.46,1.19183808]
[1766660916463,1.19547751,837.32,836.46,1.19183808]
[1766660916663,1.19547751,837.31,836.46,1.19183808]
[1766660916864,1.19547751,837.3,836.46,1.19183808]
[1766660917065,0.88848105,837.36,836.46,1.19183808]
[1766660917066,1.19547751,837.29,836.46,1.19183808]
[1766660917265,1.19547751,837.28,836.46,1.19183808]
[1766660917465,1.19547751,837.27,836.46,1.19183808]
[1766660917662,0.88848105,837.35,836.46,1.19183808]
[1766660917861,1.19547751,837.34,836.46,1.19183808]
[1766660918061,1.19547751,837.33,836.46,1.19183808]
[1766660918260,1.19547751,837.32,836.46,1.19183808]
[1766660918466,1.19547751,837.31,836.46,1.19183808]
[1766660918663,1.19547751,837.3,836.46,1.19183808]
[1766660918965,1.19547751,837.29,836.46,1.19183808]
[1766660919165,1.19547751,837.28,836.46,1.19183808]
[1766660919363,1.19547751,837.27,836.46,1.19183808]
[1766660919567,0.88848105,837.35,836.46,1.19183808]
[1766660919767,1.19547751,837.34,836.46,1.19183808]
[1766660920063,1.19547751,837.33,836.46,1.19183808]
[1766660920271,1.19547751,837.32,836.46,1.19183808]
[1766660920462,1.19547751,837.31,836.46,1.19183808]
[1766660920664,1.19547751,837.3,836.46,1.19183808]
[1766660920966,1.19547751,837.29,836.46,1.19183808]
[1766660921164,1.19547751,837.28,836.46,1.19183808]
[1766660921465,1.19547751,837.27,836.46,1.19183808]
[1766660921669,0.88848105,837.35,836.46,1.19183808]
[1766660921964,1.19547828,837.34,836.46,1.19183808]
[1766660922164,1.19547828,837.33,836.46,1.19183808]
[1766660922365,0.88848105,837.35,836.46,1.19183808]
[1766660922366,1.19547828,837.32,836.46,1.19183808]
[1766660922565,1.19547828,837.31,836.46,1.19183808]
[1766660922769,1.19547828,837.3,836.46,1.19183808]
[1766660923068,1.19547828,837.29,836.46,1.19183808]
[1766660923269,1.19547828,837.28,836.46,1.19183808]
[1766660923570,1.19547828,837.27,836.46,1.19183808]
[1766660923866,0.88848105,837.35,836.46,1.19183808]
[1766660924069,1.19547828,837.34,836.46,1.19183808]
[1766660924369,1.19547828,837.33,836.46,1.19183808]
[1766660924668,1.19547828,837.32,836.46,1.19183808]
[1766660924868,1.19547828,837.31,836.46,1.19183808]
[1766660925067,1.19547828,837.3,836.46,1.19183808]
[1766660925271,1.19547828,837.29,836.46,1.19183808]
[1766660925566,1.19547828,837.28,836.46,1.19183808]
[1766660925866,1.19547828,837.27,836.46,1.19183808]
[1766660926069,0.88848105,837.35,836.46,1.19183808]
[1766660926270,1.19547828,837.34,836.46,1.19183808]
[1766660926469,1.19547828,837.33,836.46,1.19183808]
[1766660926668,1.19547828,837.32,836.46,1.19183808]
[1766660926871,1.19547828,837.31,836.46,1.19183808]
[1766660927173,1.19547828,837.3,836.46,1.19183808]
[1766660927371,1.19547828,837.29,836.46,1.19183808]
[1766660927570,1.19547828,837.28,836.46,1.19183808]
[1766660927773,1.19547828,837.27,836.46,1.19183808]
[1766660927975,0.88848105,837.35,836.46,1.19183808]
[1766660928276,1.19547828,837.34,836.46,1.19183808]
[1766660928576,1.19547828,837.33,836.46,1.19183808]
[1766660928776,1.19547828,837.32,836.46,1.19183808]
[1766660929072,1.19547828,837.31,836.46,1.19183808]
[1766660929276,1.19547828,837.3,836.46,1.19183808]
[1766660929571,1.19547828,837.29,836.46,1.19183808]
[1766660929772,1.19547828,837.28,836.46,1.19183808]
[1766660929972,1.19547828,837.27,836.46,1.19183808]
[1766660930173,0.88848105,837.35,836.46,1.19183808]
[1766660930373,1.19547815,837.34,836.46,1.19183808]
[1766660930573,1.19547815,837.33,836.46,1.19183808]
[1766660930777,1.19547815,837.32,836.46,1.19183808]
[1766660931073,1.19547815,837.31,836.46,1.19183808]
[1766660931272,1.19547815,837.3,836.46,1.19183808]
[1766660931477,1.19547815,837.29,836.46,1.19183808]
[1766660931776,1.19547815,837.28,836.46,1.19183808]
[1766660931977,1.19547815,837.27,836.45,1.19183808]
[1766660932174,0.88848105,837.35,836.45,1.19183808]
[1766660932378,1.19547815,837.34,836.45,1.19183808]
[1766660932677,1.19547815,837.33,836.45,1.19183808]
[1766660932880,1.19547815,837.32,836.45,1.19183808]
[1766660933078,1.19547815,837.31,836.45,1.19183808]
[1766660933378,1.19547815,837.3,836.45,1.19183808]
[1766660933575,1.19547815,837.29,836.45,1.19183808]
[1766660933873,1.19547815,837.28,836.45,1.19183808]
[1766660934077,1.19547815,837.27,836.45,1.19183808]
[1766660934281,0.88848105,837.35,836.45,1.19183808]
[1766660934478,1.19547815,837.34,836.45,1.19183808]
[1766660934781,1.19547815,837.33,836.45,1.19183808]
[1766660934977,1.19547815,837.32,836.45,1.19183808]
[1766660935182,1.19547815,837.31,836.45,1.19183808]
[1766660935382,1.19547815,837.3,836.45,1.19183808]
[1766660935581,1.19547815,837.29,836.45,1.19183808]
[1766660935781,1.19547815,837.28,836.45,1.19183808]
[1766660935982,1.19547815,837.27,836.45,1.19183808]
[1766660936181,0.88848105,837.35,836.45,1.19183808]
[1766660936383,1.19547776,837.34,836.45,1.19183808]
[1766660936583,1.19547776,837.33,836.45,1.19183808]
[1766660936784,1.19547776,837.32,836.45,1.19183808]
[1766660937080,1.19547776,837.31,836.45,1.19183808]
[1766660937380,1.19547776,837.3,836.45,1.19183808]
[1766660937678,0.88848105,837.35,836.45,1.19183808]
[1766660937679,1.19547776,837.29,836.45,1.19183808]
[1766660937884,1.19547776,837.28,836.45,1.19183808]
[1766660938085,1.19547776,837.27,836.45,1.19183808]
[1766660938281,0.88848105,837.35,836.46,1.19183808]
[1766660938479,1.19547789,837.34,836.46,1.19183808]
[1766660938681,1.19547789,837.33,836.46,1.19183808]
[1766660938885,1.19547789,837.32,836.46,1.19183808]
[1766660939082,1.19547789,837.31,836.46,1.19183808]
[1766660939381,1.18477461,837.5,836.46,1.19183808]
[1766660939382,1.19547789,837.3,836.46,1.19183808]
[1766660939579,1.19547789,837.29,836.46,1.19183808]
[1766660939782,1.19547789,837.28,836.46,1.19183808]
[1766660940084,1.19547789,837.27,836.46,1.19183808]
[1766660940380,0.88848105,837.34,836.46,1.19183808]
[1766660940579,1.19547751,837.33,836.46,1.19183808]
[1766660940782,1.19547751,837.32,836.46,1.19183808]
[1766660940984,1.19547751,837.31,836.46,1.19183808]
[1766660941186,1.19547751,837.3,836.46,1.19183808]
[1766660941386,1.19547751,837.29,836.46,1.19183808]
[1766660941587,1.19547751,837.28,836.46,1.19183808]
[1766660941786,1.19547751,837.27,836.46,1.19183808]
[1766660942083,0.88848105,837.34,836.46,1.19183808]
[1766660942282,1.19547789,837.33,836.46,1.19183808]
[1766660942486,1.19547789,837.32,836.46,1.19183808]
[1766660942787,1.19547789,837.31,836.46,1.19183808]
[1766660942980,1.19547789,837.3,836.46,1.19183808]
[1766660943185,1.19547789,837.29,836.46,1.19183808]
[1766660943383,1.19547789,837.28,836.46,1.19183808]
[1766660943586,1.19547789,837.27,836.46,1.19183808]
[1766660943787,0.88848105,837.35,836.46,1.19183808]
[1766660944086,1.19546774,837.34,836.47,1.19183808]
[1766660944281,1.19546774,837.33,836.47,1.19183808]
[1766660944482,1.19546774,837.32,836.47,1.19183808]
[1766660944682,1.19546774,837.31,836.47,1.19183808]
[1766660944885,1.19546774,837.3,836.47,1.19183808]
[1766660945081,1.19546774,837.29,836.47,1.19183808]
[1766660945284,1.19546774,837.28,836.47,1.19183808]
[1766660945484,0.88848105,837.36,836.47,1.19183808]
[1766660945683,1.19545697,837.35,836.47,1.19183808]
[1766660945887,1.19545697,837.34,836.47,1.19183808]
[1766660946087,1.19545697,837.33,836.47,1.19183808]
[1766660946288,1.19545697,837.32,836.47,1.19183808]
[1766660946485,1.19545697,837.31,836.47,1.19183808]
[1766660946790,1.19545697,837.3,836.47,1.19183808]
[1766660946988,1.19545697,837.29,836.47,1.19183808]
[1766660947190,1.19545697,837.28,836.47,1.19183808]
[1766660947388,0.88848105,837.36,836.47,1.19183808]
[1766660947588,1.19545697,837.35,836.47,1.19183808]
[1766660947890,1.19545697,837.34,836.47,1.19183808]
[1766660948189,1.19545697,837.33,836.47,1.19183808]
[1766660948389,1.19545697,837.32,836.47,1.19183808]
[1766660948590,1.19545697,837.31,836.47,1.19183808]
[1766660948887,1.19545697,837.3,836.47,1.19183808]
[1766660949089,1.19545697,837.29,836.47,1.19183808]
[1766660949386,1.19545697,837.28,836.47,1.19183808]
[1766660949584,0.88848105,837.35,836.47,1.19183808]
[1766660949788,1.1954571,837.34,836.47,1.19183808]
[1766660949985,1.1954571,837.33,836.47,1.19183808]
[1766660950185,1.1954571,837.32,836.47,1.19183808]
[1766660950485,1.1954571,837.31,836.47,1.19183808]
[1766660950688,1.1954571,837.3,836.47,1.19183808]
[1766660950889,1.1954571,837.29,836.47,1.19183808]
[1766660951190,1.1954571,837.28,836.47,1.19183808]
[1766660951390,0.88848105,837.35,836.47,1.19183808]
[1766660951690,1.19545697,837.34,836.47,1.19183808]
[1766660951889,1.19545697,837.33,836.47,1.19183808]
[1766660952190,1.19545697,837.32,836.47,1.19183808]
[1766660952487,1.19545697,837.31,836.47,1.19183808]
[1766660952786,1.19545697,837.3,836.47,1.19183808]
[1766660952990,1.19545697,837.29,836.47,1.19183808]
[1766660953192,1.19545697,837.28,836.47,1.19183808]
[1766660953492,0.88848105,837.35,836.47,1.19183808]
[1766660953689,1.19545697,837.34,836.47,1.19183808]
[1766660953891,1.19545697,837.33,836.47,1.19183808]
[1766660954091,1.19545697,837.32,836.47,1.19183808]
[1766660954292,1.19545697,837.31,836.49,1.19183808]
[1766660954492,1.19545697,837.3,836.49,1.19183808]
[1766660954693,1.19545697,837.29,836.49,1.19183808]
[1766660954894,0.88848105,837.36,836.49,1.19183808]
[1766660955094,1.19543679,837.35,836.49,1.19183808]
[1766660955393,1.19543679,837.34,836.49,1.19183808]
[1766660955590,1.19543679,837.33,836.49,1.19183808]
[1766660955889,1.19543679,837.32,836.49,1.19183808]
[1766660956087,1.19543679,837.31,836.49,1.19183808]
[1766660956292,1.19543679,837.3,836.49,1.19183808]
[1766660956492,1.19543679,837.29,836.49,1.19183808]
[1766660956794,0.88848105,837.36,836.49,1.19183808]
[1766660956991,1.19543679,837.35,836.49,1.19183808]
[1766660957193,1.19543679,837.34,836.49,1.19183808]
[1766660957390,1.19543679,837.33,836.49,1.19183808]
[1766660957689,1.19543679,837.32,836.49,1.19183808]
[1766660957891,1.19543679,837.31,836.49,1.19183808]
[1766660958190,1.19543679,837.3,836.49,1.19183808]
[1766660958390,1.19543679,837.29,836.49,1.19183808]
[1766660958590,0.88848105,837.37,836.49,1.19183808]
[1766660958893,1.19543576,837.36,836.49,1.19183808]
[1766660959094,1.19543576,837.35,836.49,1.19183808]
[1766660959290,1.19543576,837.34,836.49,1.19183808]
[1766660959495,1.19543576,837.33,836.49,1.19183808]
[1766660959692,1.19543576,837.32,836.49,1.19183808]
[1766660959992,1.19543576,837.31,836.49,1.19183808]
[1766660960197,1.19543576,837.3,836.49,1.19183808]
[1766660960495,1.19543576,837.29,836.49,1.19183808]
[1766660960696,0.88848105,837.37,836.49,1.19183808]
[1766660960895,1.1954364,837.36,836.49,1.19183808]
[1766660961095,1.1954364,837.35,836.49,1.19183808]
[1766660961296,1.1954364,837.34,836.49,1.19183808]
[1766660961492,1.1954364,837.33,836.49,1.19183808]
[1766660961796,1.1954364,837.32,836.49,1.19183808]
[1766660962097,1.1954364,837.31,836.49,1.19183808]
[1766660962396,1.1954364,837.3,836.49,1.19183808]
[1766660962592,1.1954364,837.29,836.49,1.19183808]
[1766660962795,0.88848105,837.37,836.49,1.19183808]
[1766660963095,1.1954364,837.36,836.49,1.19183808]
[1766660963295,1.1954364,837.35,836.49,1.19183808]
[1766660963492,0.88848105,837.37,836.49,1.19183808]
[1766660963493,1.1954364,837.34,836.49,1.19183808]
[1766660963695,1.1954364,837.33,836.49,1.19183808]
[1766660963892,1.1954364,837.32,836.49,1.19183808]
[1766660964096,1.1954364,837.31,836.49,1.19183808]
[1766660964297,1.1954364,837.3,836.49,1.19183808]
[1766660964492,1.1954364,837.29,836.49,1.19183808]
[1766660964793,0.88848105,837.37,836.49,1.19183808]
[1766660964997,1.19543589,837.36,836.49,1.19183808]
[1766660965196,1.19543589,837.35,836.49,1.19183808]
[1766660965498,1.19543589,837.34,836.49,1.19183808]
[1766660965697,1.19543589,837.33,836.49,1.19183808]
[1766660965892,1.19543589,837.32,836.49,1.19183808]
[1766660966095,1.19543589,837.31,836.49,1.19183808]
[1766660966395,1.19543589,837.3,836.49,1.19183808]
[1766660966592,1.19543589,837.29,836.49,1.19183808]
[1766660966791,0.88848105,837.37,836.49,1.19183808]
[1766660966995,1.19543589,837.36,836.49,1.19183808]
[1766660967198,1.19543589,837.35,836.49,1.19183808]
[1766660967392,1.19543589,837.34,836.49,1.19183808]
[1766660967594,1.19543589,837.33,836.49,1.19183808]
[1766660967798,1.19543589,837.32,836.49,1.19183808]
[1766660967995,1.19543589,837.31,836.49,1.19183808]
[1766660968193,1.19543589,837.3,836.49,1.19183808]
[1766660968394,1.19543589,837.29,836.49,1.19183808]
[1766660968699,0.88848105,837.37,836.49,1.19183808]
[1766660968999,1.19543589,837.36,836.49,1.19183808]
[1766660969198,1.19543589,837.35,836.49,1.19183808]
[1766660969399,1.19543589,837.34,836.49,1.19183808]
[1766660969699,1.19543589,837.33,836.49,1.19183808]
[1766660969999,1.19543589,837.32,836.49,1.19183808]
[1766660970199,1.19543589,837.31,836.49,1.19183808]
[1766660970400,1.19543589,837.3,836.49,1.19183808]
[1766660970696,1.19543589,837.29,836.49,1.19183808]
[1766660970901,0.88848105,837.37,836.49,1.19183808]
[1766660971100,1.19543666,837.36,836.49,1.19183808]
[1766660971300,1.19543666,837.35,836.49,1.19183808]
[1766660971496,1.19543666,837.34,836.49,1.19183808]
[1766660971795,1.19543666,837.33,836.49,1.19183808]
[1766660971994,1.19543666,837.32,836.49,1.19183808]
[1766660972197,1.19543666,837.31,836.49,1.19183808]
[1766660972396,1.19543666,837.3,836.49,1.19183808]
[1766660972696,1.19543666,837.29,836.49,1.19183808]
[1766660972896,0.88848105,837.37,836.49,1.19183808]
[1766660973098,1.19543653,837.36,836.49,1.19183808]
[1766660973297,1.19543653,837.35,836.49,1.19183808]
[1766660973499,1.19543653,837.34,836.49,1.19183808]
[1766660973697,1.19543653,837.33,836.49,1.19183808]
[1766660973899,1.19543653,837.32,836.49,1.19183808]
[1766660974096,1.19543653,837.31,836.49,1.19183808]
[1766660974295,1.19543653,837.3,836.49,1.19183808]
[1766660974500,1.19543653,837.29,836.49,1.19183808]
[1766660974698,0.88848105,837.37,836.49,1.19183808]
[1766660974903,1.19543554,837.36,836.49,1.19183808]
[1766660975104,1.19543554,837.35,836.49,1.19183808]
[1766660975403,1.19543554,837.34,836.49,1.19183808]
[1766660975603,1.19543554,837.33,836.49,1.19183808]
[1766660975899,1.19543554,837.32,836.49,1.19183808]
[1766660976104,1.19543554,837.31,836.49,1.19183808]
[1766660976300,1.19543554,837.3,836.49,1.19183808]
[1766660976504,1.19543554,837.29,836.49,1.19183808]
[1766660976701,0.88848105,837.37,836.49,1.19183808]
[1766660976905,1.19543541,837.36,836.49,1.19183808]
[1766660977201,1.19543541,837.35,836.5,1.19183808]
[1766660977399,1.19543541,837.34,836.5,1.19183808]
[1766660977603,1.19543541,837.33,836.5,1.19183808]
[1766660977800,1.19543541,837.32,836.5,1.19183808]
[1766660978000,1.19543541,837.31,836.5,1.19183808]
[1766660978201,1.19543541,837.3,836.5,1.19183808]
[1766660978507,0.88848105,837.38,836.5,1.19183808]
[1766660978701,1.19542564,837.37,836.5,1.19183808]
[1766660979002,1.19542564,837.36,836.5,1.19183808]
[1766660979206,1.19542564,837.35,836.5,1.19183808]
[1766660979405,1.19542564,837.34,836.5,1.19183808]
[1766660979604,1.19542564,837.33,836.5,1.19183808]
[1766660979806,1.19542564,837.32,836.5,1.19183808]
[1766660980007,1.19542564,837.31,836.5,1.19183808]
[1766660980304,1.19542564,837.3,836.5,1.19183808]
[1766660980505,0.88848105,837.38,836.5,1.19183808]
[1766660980702,1.19542551,837.37,836.5,1.19183808]
[1766660980907,1.19542551,837.36,836.5,1.19183808]
[1766660981205,1.19542551,837.35,836.5,1.19183808]
[1766660981402,1.19542551,837.34,836.5,1.19183808]
[1766660981603,1.19542551,837.33,836.5,1.19183808]
[1766660981801,1.19542551,837.32,836.5,1.19183808]
[1766660982007,1.19542551,837.31,836.5,1.19183808]
[1766660982206,0.88848105,837.39,836.5,1.19183808]
[1766660982405,1.19538539,837.38,836.53,1.19183808]
[1766660982707,1.19538539,837.37,836.53,1.19183808]
[1766660982907,1.19538539,837.36,836.53,1.19183808]
[1766660983206,1.19538539,837.35,836.53,1.19183808]
[1766660983407,1.19538539,837.34,836.53,1.19183808]
[1766660983608,0.88848105,837.41,836.53,1.19183808]
[1766660983808,1.19537536,837.4,836.53,1.19183808]
[1766660984003,1.19537536,837.39,836.53,1.19183808]
[1766660984207,1.19537536,837.38,836.53,1.19183808]
[1766660984404,1.19537536,837.37,836.53,1.19183808]
[1766660984607,1.19537536,837.36,836.53,1.19183808]
[1766660984809,1.19537536,837.35,836.53,1.19183808]
[1766660985205,1.19537536,837.34,836.53,1.19183808]
[1766660985410,0.88848105,837.42,836.53,1.19183808]
[1766660985605,1.19537536,837.41,836.53,1.19183808]
[1766660985909,1.19537536,837.4,836.53,1.19183808]
[1766660986209,1.19537536,837.39,836.53,1.19183808]
[1766660986409,1.19537536,837.38,836.53,1.19183808]
[1766660986608,1.19537536,837.37,836.53,1.19183808]
[1766660986808,1.19537536,837.36,836.53,1.19183808]
[1766660987009,1.19537536,837.35,836.53,1.19183808]
[1766660987210,1.19537536,837.34,836.52,1.19183808]
[1766660987510,0.88848105,837.42,836.52,1.19183808]
[1766660987809,1.19537523,837.41,836.52,1.19183808]
[1766660988009,1.19537523,837.4,836.52,1.19183808]
[1766660988209,1.19537523,837.39,836.52,1.19183808]
[1766660988405,1.19537523,837.38,836.52,1.19183808]
[1766660988605,1.19537523,837.37,836.52,1.19183808]
[1766660988906,1.19537523,837.36,836.52,1.19183808]
[1766660989106,1.19537523,837.35,836.52,1.19183808]
[1766660989311,1.19537523,837.34,836.52,1.19183808]
[1766660989509,0.88848105,837.42,836.52,1.19183808]
[1766660989707,1.19537523,837.41,836.52,1.19183808]
[1766660990010,1.19537523,837.4,836.52,1.19183808]
[1766660990206,1.19537523,837.39,836.52,1.19183808]
[1766660990411,1.19537523,837.38,836.53,1.19183808]
[1766660990605,0.88848105,837.43,836.53,1.19183808]
[1766660990606,1.19537523,837.37,836.53,1.19183808]
[1766660990808,1.19537523,837.36,836.53,1.19183808]
[1766660991110,1.19537523,837.35,836.53,1.19183808]
[1766660991407,0.88848105,837.43,836.53,1.19183808]
[1766660991608,1.19536521,837.42,836.53,1.19183808]
[1766660991907,1.19536521,837.41,836.53,1.19183808]
[1766660992110,1.19536521,837.4,836.53,1.19183808]
[1766660992310,1.19536521,837.39,836.53,1.19183808]
[1766660992508,1.19536521,837.38,836.53,1.19183808]
[1766660992811,1.19536521,837.37,836.53,1.19183808]
[1766660993016,1.19536521,837.36,836.53,1.19183808]
[1766660993210,1.19536521,837.35,836.53,1.19183808]
[1766660993508,0.88848105,837.44,836.53,1.19183808]
[1766660993808,1.19535506,837.43,836.53,1.19183808]
[1766660994008,1.19535506,837.42,836.53,1.19183808]
[1766660994309,1.19535506,837.41,836.53,1.19183808]
[1766660994508,1.19535506,837.4,836.53,1.19183808]
[1766660994812,1.19535506,837.39,836.53,1.19183808]
[1766660995108,1.19535506,837.38,836.53,1.19183808]
[1766660995307,1.19535506,837.37,836.53,1.19183808]
[1766660995510,1.19535506,837.36,836.53,1.19183808]
[1766660995710,0.88848105,837.44,836.53,1.19183808]
[1766660995911,1.19535506,837.43,836.53,1.19183808]
[1766660996108,1.19535506,837.42,836.53,1.19183808]
[1766660996308,1.19535506,837.41,836.53,1.19183808]
[1766660996508,1.19535506,837.4,836.53,1.19183808]
[1766660996708,1.19535506,837.39,836.53,1.19183808]
[1766660996912,1.19535506,837.38,836.53,1.19183808]
[1766660997114,1.19535506,837.37,836.53,1.19183808]
[1766660997313,1.19535506,837.36,836.53,1.19183808]
[1766660997513,0.88848105,837.44,836.53,1.19183808]
[1766660997709,1.19535506,837.43,836.53,1.19183808]
[1766660997909,1.19535506,837.42,836.53,1.19183808]
[1766660998213,1.19535506,837.41,836.53,1.19183808]
[1766660998407,1.19535506,837.4,836.53,1.19183808]
[1766660998608,1.19535506,837.39,836.53,1.19183808]
[1766660998810,1.19535506,837.38,836.53,1.19183808]
[1766660999010,1.19535506,837.37,836.53,1.19183808]
[1766660999211,1.19535506,837.36,836.53,1.19183808]
[1766660999512,0.88848105,837.44,836.53,1.19183808]
[1766660999712,1.19535506,837.43,836.53,1.19183808]
[1766660999912,1.19535506,837.42,836.53,1.19183808]
[1766661000111,1.19535506,837.41,836.53,1.19183808]
[1766661000312,1.18477461,837.59,835.69,0.00905945]
[1766661000313,1.19535506,837.4,836.55,1.19183808]
[1766661000511,1.19535506,837.39,836.55,1.19183808]
[1766661000712,1.19535506,837.38,836.55,1.19183808]
[1766661001015,0.88848105,837.46,836.55,1.19183808]
[1766661001216,1.19532499,837.45,836.55,1.19183808]
[1766661001418,1.19532499,837.44,836.55,1.19183808]
[1766661001614,1.19532499,837.43,836.55,1.19183808]
[1766661001814,0.88848105,837.47,836.55,1.19183808]
[1766661001815,1.19532499,837.42,836.55,1.19183808]
[1766661002019,1.19532499,837.41,836.55,1.19183808]
[1766661002319,1.19532499,837.4,836.55,1.19183808]
[1766661002615,1.19532499,837.39,836.55,1.19183808]
[1766661002819,0.88848105,837.47,836.55,1.19183808]
[1766661003020,1.19532473,837.46,836.55,1.19183808]
[1766661003216,1.19532473,837.45,836.55,1.19183808]
[1766661003518,1.19532473,837.44,836.55,1.19183808]
[1766661003721,1.19532473,837.43,836.55,1.19183808]
[1766661003921,1.19532473,837.42,836.55,1.19183808]
[1766661004115,1.19532473,837.41,836.54,1.19183808]
[1766661004316,1.19532473,837.4,836.54,1.19183808]
[1766661004520,1.19532473,837.39,836.54,1.19183808]
[1766661004718,1.19532473,837.38,836.54,1.19183808]
[1766661004917,0.88848105,837.46,836.54,1.19183808]
[1766661005117,1.19533744,837.45,836.54,1.19183808]
[1766661005417,1.19533744,837.44,836.54,1.19183808]
[1766661005618,1.19533744,837.43,836.54,1.19183808]
[1766661005820,1.19533744,837.42,836.54,1.19183808]
[1766661006017,1.19533744,837.41,836.54,1.19183808]
[1766661006222,1.19533744,837.4,836.54,1.19183808]
[1766661006422,1.19533744,837.39,836.54,1.19183808]
[1766661006622,1.19533744,837.38,836.54,1.19183808]
[1766661006819,0.88848105,837.46,836.54,1.19183808]
[1766661007018,0.20778352,837.75,836.54,1.19183808]
[1766661007019,1.19533744,837.45,836.54,1.19183808]
[1766661007221,1.19533744,837.44,836.54,1.19183808]
[1766661007419,1.19533744,837.43,836.54,1.19183808]
[1766661007618,1.19533744,837.42,836.54,1.19183808]
[1766661007820,1.19533744,837.41,836.54,1.19183808]
[1766661008121,1.19533744,837.4,836.54,1.19183808]
[1766661008319,1.19533744,837.39,836.54,1.19183808]
[1766661008521,0.88848105,837.47,836.54,1.19183808]
[1766661008720,1.19532729,837.46,836.54,1.19183808]
[1766661008921,1.19532729,837.45,836.54,1.19183808]
[1766661009120,1.19532729,837.44,836.54,1.19183808]
[1766661009321,1.19532729,837.43,836.54,1.19183808]
[1766661009524,1.19532729,837.42,836.54,1.19183808]
[1766661009720,1.19532729,837.41,836.54,1.19183808]
[1766661009920,1.19532729,837.4,836.54,1.19183808]
[1766661010122,1.19532729,837.39,836.54,1.19183808]
[1766661010323,0.88848105,837.47,836.54,1.19183808]
[1766661010521,1.19532677,837.46,836.54,1.19183808]
[1766661010720,1.19532677,837.45,836.54,1.19183808]
[1766661011022,1.19532677,837.44,836.54,1.19183808]
[1766661011223,1.19532677,837.43,836.54,1.19183808]
[1766661011424,1.19532677,837.42,836.54,1.19183808]
[1766661011623,1.19532677,837.41,836.54,1.19183808]
[1766661011821,0.88848105,837.47,836.54,1.19183808]
[1766661011822,1.19532677,837.4,836.54,1.19183808]
[1766661012022,1.19532677,837.39,836.54,1.19183808]
[1766661012224,0.88848105,837.47,836.54,1.19183808]
[1766661012424,1.19532677,837.46,836.54,1.19183808]
[1766661012624,1.19532677,837.45,836.54,1.19183808]
[1766661012921,1.19532677,837.44,836.54,1.19183808]
[1766661013120,1.19532677,837.43,836.54,1.19183808]
[1766661013325,1.19532677,837.42,836.54,1.19183808]
[1766661013524,1.19532677,837.41,836.54,1.19183808]
[1766661013726,0.88848105,837.47,836.54,1.19183808]
[1766661013727,1.19532677,837.4,836.54,1.19183808]
[1766661013923,1.19532677,837.39,836.54,1.19183808]
[1766661014129,0.88848105,837.47,836.54,1.19183808]
[1766661014323,1.19532677,837.46,836.54,1.19183808]
[1766661014527,1.19532677,837.45,836.54,1.19183808]
[1766661014724,1.19532677,837.44,836.54,1.19183808]
[1766661015028,1.19532677,837.43,836.54,1.19183808]
[1766661015229,1.19532677,837.42,836.54,1.19183808]
[1766661015424,1.19532677,837.41,836.54,1.19183808]
[1766661015630,1.19532677,837.4,836.54,1.19183808]
[1766661015828,1.19532677,837.39,836.54,1.19183808]
[1766661016027,0.88848105,837.47,836.54,1.19183808]